fUST/lending_fUST_20240420
["ID","MTS","AMOUNT","RATE_DAILY","PERIOD"]
[323066299,1713623311783,300.0,0.00022699,2]
[323066300,1713623319468,157.66572664,0.00022699,2]
[323066301,1713623330877,5075.83,0.000227,2]
[323066302,1713623343296,5075.82,0.000227,2]
[323066303,1713623372223,173.12884358,0.00022699,2]
[323066306,1713623389326,154.79876161,0.00022699,2]
[323066308,1713623393684,308.32296411,0.00022699,2]
[323066453,1713623437945,-3342.29068549,0.000227,2]
[323066455,1713623437955,-308.17554915,0.00022793,2]
[323066457,1713623437964,-155.0,0.00023014,2]
[323066459,1713623437973,-4202.94429323,0.00023892,2]
[323066461,1713623437982,-300.0,0.00023892,2]
[323066463,1713623437992,-300.0,0.00023892,2]
[323066465,1713623438005,-2000.0,0.00023893,2]
[323066467,1713623438014,-556.52530729,0.00023893,2]
[323066469,1713623438023,-556.52530727,0.00023894,2]
[323066471,1713623438032,-556.52530727,0.00023894,2]
[323066473,1713623438042,-556.52530727,0.00023895,2]
[323066475,1713623438051,-556.52530727,0.00023895,2]
[323066477,1713623438060,-785.73545469,0.00023972,2]
[323066479,1713623438071,-447.62403786,0.00023979,2]
[323066481,1713623438079,-500.0,0.0002399,2]
[323066483,1713623438088,-500.0,0.0002399,2]
[323066485,1713623438097,-500.0,0.0002399,2]
[323066487,1713623438106,-500.0,0.0002399,2]
[323066489,1713623438115,-500.0,0.0002399,2]
[323066491,1713623438125,-500.0,0.0002399,2]
[323066493,1713623438134,-420.93227076,0.0002399,2]
[323066495,1713623438143,-500.0,0.0002399,2]
[323066497,1713623438152,-500.0,0.0002399,2]
[323066499,1713623438162,-500.0,0.0002399,2]
[323066502,1713623438172,-500.0,0.0002399,2]
[323066504,1713623438183,-500.0,0.0002399,2]
[323066506,1713623438192,-500.0,0.0002399,2]
[323066507,1713623438201,-500.0,0.0002399,2]
[323066509,1713623438210,-500.0,0.0002399,2]
[323066511,1713623438219,-500.0,0.0002399,2]
[323066513,1713623438228,-500.0,0.0002399,2]
[323066516,1713623438238,-500.0,0.0002399,2]
[323066517,1713623438247,-500.0,0.0002399,2]
[323066519,1713623438257,-147.02829381,0.0002399,2]
[323066522,1713623438270,-352.97170619,0.0002399,2]
[323066524,1713623438279,-500.0,0.0002399,2]
[323066526,1713623438288,-383.80302381,0.0002399,2]
[323066528,1713623438297,-154.86065942,0.00023991,2]
[323066530,1713623438306,-296.67906269,0.00023991,2]
[323066532,1713623438315,-189.65280989,0.00023991,2]
[323066534,1713623438324,-157.15729886,0.00023991,2]
[323066536,1713623438333,-308.22290922,0.00023991,2]
[323066538,1713623438343,-517.59432327,0.00023991,2]
[323066540,1713623438352,-247.45450439,0.00023991,2]
[323066542,1713623438361,-422.25959473,0.00023991,2]
[323066544,1713623438370,-181.418242,0.00023991,2]
[323066546,1713623438379,-231.7818381,0.00023991,2]
[323066548,1713623438388,-563.3961067,0.00023991,2]
[323066550,1713623438397,-519.00991339,0.00023991,2]
[323066552,1713623438406,-160.91958251,0.00023991,2]
[323066554,1713623438415,-324.18421291,0.00023991,2]
[323066556,1713623438424,-207.08438243,0.00023991,2]
[323066558,1713623438434,-283.89054327,0.00023991,2]
[323066560,1713623438443,-158.49657988,0.00023991,2]
[323066561,1713623438452,-160.10909109,0.00023991,2]
[323066563,1713623438461,-300.0,0.00023991,2]
[323066566,1713623438471,-168.83107154,0.00023991,2]
[323066567,1713623438480,-157.40235791,0.00023991,2]
[323066569,1713623438490,-181.23834524,0.00023991,2]
[323066571,1713623438498,-154.79876161,0.00023991,2]
[323066573,1713623438507,-173.93130162,0.00023991,2]
[323066575,1713623438516,-1016.00046324,0.00023992,2]
[323066577,1713623438525,-455.58745763,0.00023992,2]
[323066579,1713623438534,-170.48245478,0.00023992,2]
[323066581,1713623438543,-602.48199524,0.00023993,2]
[323066583,1713623438552,-1088.23087969,0.00023993,2]
[323066585,1713623438561,-408.35163562,0.00023993,2]
[323066587,1713623438570,-539.113023,0.00023993,2]
[323066589,1713623438579,-285.91357752,0.00023993,2]
[323066591,1713623438588,-2030.4557313,0.00023993,2]
[323066593,1713623438597,-468.90340767,0.00023993,2]
[323066595,1713623438606,-688.41882977,0.00023993,2]
[323066597,1713623438614,-309.809704,0.00023993,2]
[323066599,1713623438623,-258.01471985,0.00023993,2]
[323066601,1713623438633,-382.79704515,0.00023993,2]
[323066603,1713623438641,-312.80402512,0.00023993,2]
[323066605,1713623438651,-155.14999386,0.00023993,2]
[323066607,1713623438659,-2625.53144998,0.00023993,2]
[323066609,1713623438668,-7857.04488403,0.00023993,2]
[323066611,1713623438677,-525.21690715,0.00023993,2]
[323066613,1713623438687,-173.17666981,0.00023993,2]
[323066615,1713623438696,-158.76974363,0.00023993,2]
[323066617,1713623438704,-1309.83144143,0.00023993,2]
[323066619,1713623438713,-167.44009393,0.00023993,2]
[323066621,1713623438723,-203.83136061,0.00023993,2]
[323066623,1713623438731,-301.56383033,0.00023993,2]
[323066625,1713623438740,-1575.87720725,0.00023993,2]
[323066627,1713623438749,-154.8915759,0.00023993,2]
[323066629,1713623438757,-467.58359331,0.00023993,2]
[323066631,1713623438766,-204.3348143,0.00023993,2]
[323066633,1713623438775,-473.35515397,0.00023993,2]
[323066635,1713623438784,-180.56276747,0.00023993,2]
[323066637,1713623438793,-208.224515,0.00023993,2]
[323066639,1713623438802,-1145.8141515,0.00023993,2]
[323066641,1713623438810,-181.52443315,0.00023993,2]
[323066643,1713623438819,-167.46527574,0.00023994,2]
[323066645,1713623438828,-500.0,0.00023994,2]
[323066647,1713623438837,-473.82154476,0.00023994,2]
[323066649,1713623438846,-266.89382589,0.00023994,2]
[323066651,1713623438857,-500.0,0.00023994,2]
[323066653,1713623438866,-500.0,0.00023994,2]
[323066655,1713623438875,-500.0,0.00023994,2]
[323066657,1713623438884,-500.0,0.00023994,2]
[323066659,1713623438893,-500.0,0.00023994,2]
[323066661,1713623438902,-594.78073104,0.00023994,2]
[323066663,1713623438911,-500.0,0.00023994,2]
[323066665,1713623438921,-500.0,0.00023994,2]
[323066667,1713623438930,-500.0,0.00023994,2]
[323066669,1713623438942,-608.9661863,0.00023994,2]
[323066671,1713623438951,-5795.73951,0.00023995,2]
[323066673,1713623438960,-216.20494498,0.00023995,2]
[323066675,1713623438968,-155.47748817,0.00023995,2]
[323066677,1713623438977,-199.38675957,0.00023995,2]
[323066679,1713623438986,-284.59077568,0.00023995,2]
[323066681,1713623438995,-546.10996545,0.00023995,2]
[323066683,1713623439007,-266.70250402,0.00023995,2]
[323066685,1713623439015,-155.07264695,0.00023995,2]
[323066687,1713623439024,-270.504611,0.00023995,2]
[323066689,1713623439035,-155.21853111,0.00023995,2]
[323066691,1713623439044,-267.03744863,0.00023995,2]
[323066693,1713623439053,-942.10363562,0.00023995,2]
[323066695,1713623439062,-155.21887624,0.00023995,2]
[323066697,1713623439071,-1073.55691065,0.00023995,2]
[323066699,1713623439083,-584.98851052,0.00023995,2]
[323066701,1713623439093,-925.33767489,0.00023995,2]
[323066704,1713623439102,-155.96186921,0.00023995,2]
[323066706,1713623439111,-363.14242982,0.00023995,2]
[323066707,1713623439121,-315.95195604,0.00023995,2]
[323066709,1713623439130,-358.0198625,0.00023995,2]
[323066712,1713623439139,-59101.02010387,0.00023995,2]
[323066714,1713623439149,-241.07910305,0.00023995,2]
[323066716,1713623439158,-155.02062402,0.00023995,2]
[323066718,1713623439167,-231.15562171,0.00023995,2]
[323066720,1713623439176,-151.0,0.00023995,2]
[323066721,1713623439187,-151.0,0.00023995,2]
[323066723,1713623439196,-151.0,0.00023995,2]
[323066726,1713623439206,-151.0,0.00023995,2]
[323066727,1713623439215,-151.0,0.00023995,2]
[323066730,1713623439225,-151.0,0.00023995,2]
[323066732,1713623439235,-151.0,0.00023995,2]
[323066733,1713623439244,-254.738545,0.00023995,2]
[323066735,1713623439254,-151.0,0.00023995,2]
[323066737,1713623439263,-151.0,0.00023995,2]
[323066739,1713623439273,-151.0,0.00023995,2]
[323066741,1713623439282,-153.443993,0.00023995,2]
[323066743,1713623439291,-196.915655,0.00023995,2]
[323066745,1713623439302,-196.915655,0.00023995,2]
[323066747,1713623439311,-196.915655,0.00023995,2]
[323066749,1713623439320,-196.915655,0.00023995,2]
[323066751,1713623439329,-151.0,0.00023995,2]
[323066754,1713623439339,-151.0,0.00023995,2]
[323066757,1713623439348,-151.0,0.00023995,2]
[323066759,1713623439357,-151.0,0.00023995,2]
[323066761,1713623439366,-153.131755,0.00023995,2]
[323066762,1713623439375,-281.28574,0.00023995,2]
[323066764,1713623439384,-156.615721,0.00023995,2]
[323066766,1713623439392,-156.615721,0.00023995,2]
[323066768,1713623439401,-156.615721,0.00023995,2]
[323066770,1713623439410,-156.615721,0.00023995,2]
[323066772,1713623439419,-596.788897,0.00023995,2]
[323066774,1713623439428,-596.788897,0.00023995,2]
[323066776,1713623439439,-596.788897,0.00023995,2]
[323066778,1713623439448,-596.788897,0.00023995,2]
[323066781,1713623439457,-325.786435,0.00023995,2]
[323066784,1713623439466,-325.786435,0.00023995,2]
[323066787,1713623439475,-325.786435,0.00023995,2]
[323066789,1713623439484,-325.786435,0.00023995,2]
[323066791,1713623439493,-1298.189436,0.00023995,2]
[323066793,1713623439502,-1298.189436,0.00023995,2]
[323066795,1713623439511,-1298.189436,0.00023995,2]
[323066797,1713623439520,-1298.189436,0.00023995,2]
[323066799,1713623439529,-1298.189436,0.00023995,2]
[323066801,1713623439539,-1298.189436,0.00023995,2]
[323066803,1713623439548,-270.001275,0.00023995,2]
[323066806,1713623439559,-270.001275,0.00023995,2]
[323066808,1713623439568,-270.001275,0.00023995,2]
[323066809,1713623439577,-270.001275,0.00023995,2]
[323066811,1713623439586,-270.001275,0.00023995,2]
[323066813,1713623439595,-270.001275,0.00023995,2]
[323066815,1713623439604,-151.0,0.00023995,2]
[323066817,1713623439613,-151.0,0.00023995,2]
[323066819,1713623439622,-151.0,0.00023995,2]
[323066821,1713623439631,-151.0,0.00023995,2]
[323066823,1713623439639,-151.0,0.00023995,2]
[323066825,1713623439648,-151.0,0.00023995,2]
[323066827,1713623439657,-345.601958,0.00023995,2]
[323066829,1713623439667,-345.601958,0.00023995,2]
[323066840,1713623439756,-345.601958,0.00023995,2]
[323066841,1713623439765,-345.601958,0.00023995,2]
[323066842,1713623439774,-345.601958,0.00023995,2]
[323066843,1713623439783,-345.601958,0.00023995,2]
[323066844,1713623439792,-173.749748,0.00023995,2]
[323066845,1713623439801,-173.749748,0.00023995,2]
[323066846,1713623439810,-173.749748,0.00023995,2]
[323066847,1713623439819,-173.749748,0.00023995,2]
[323066848,1713623439828,-173.749748,0.00023995,2]
[323066849,1713623439837,-173.749748,0.00023995,2]
[323066850,1713623439847,-151.0,0.00023995,2]
[323066851,1713623439856,-151.0,0.00023995,2]
[323066852,1713623439866,-151.0,0.00023995,2]
[323066853,1713623439875,-151.0,0.00023995,2]
[323066854,1713623439884,-151.0,0.00023995,2]
[323066855,1713623439893,-151.0,0.00023995,2]
[323066856,1713623439902,-225.674775,0.00023995,2]
[323066857,1713623439911,-151.0,0.00023995,2]
[323066858,1713623439920,-151.0,0.00023995,2]
[323066859,1713623439929,-151.0,0.00023995,2]
[323066860,1713623439938,-151.0,0.00023995,2]
[323066861,1713623439948,-151.0,0.00023995,2]
[323066862,1713623439957,-2109.5366,0.00023995,2]
[323066864,1713623439966,-2109.5366,0.00023995,2]
[323066865,1713623439975,-2109.5366,0.00023995,2]
[323066867,1713623439984,-151.0,0.00023995,2]
[323066869,1713623439996,-151.0,0.00023995,2]
[323066871,1713623440005,-151.0,0.00023995,2]
[323066873,1713623440014,-151.0,0.00023995,2]
[323066875,1713623440025,-2109.5366,0.00023995,2]
[323066877,1713623440034,-2109.5366,0.00023995,2]
[323066879,1713623440043,-2109.5366,0.00023995,2]
[323066881,1713623440052,-151.0,0.00023995,2]
[323066883,1713623440061,-151.0,0.00023995,2]
[323066886,1713623440071,-151.0,0.00023995,2]
[323066887,1713623440081,-151.0,0.00023995,2]
[323066889,1713623440090,-151.0,0.00023995,2]
[323066891,1713623440100,-151.0,0.00023995,2]
[323066894,1713623440109,-151.0,0.00023995,2]
[323066896,1713623440118,-151.0,0.00023995,2]
[323066898,1713623440127,-151.0,0.00023995,2]
[323066899,1713623440137,-151.0,0.00023995,2]
[323066901,1713623440146,-151.0,0.00023995,2]
[323066904,1713623440155,-346.559561,0.00023995,2]
[323066906,1713623440165,-346.559561,0.00023995,2]
[323066907,1713623440174,-346.559561,0.00023995,2]
[323066909,1713623440184,-346.559561,0.00023995,2]
[323066911,1713623440193,-346.559561,0.00023995,2]
[323066914,1713623440203,-346.559561,0.00023995,2]
[323066915,1713623440212,-151.0,0.00023995,2]
[323066917,1713623440221,-151.0,0.00023995,2]
[323066919,1713623440230,-151.0,0.00023995,2]
[323066921,1713623440239,-346.559561,0.00023995,2]
[323066923,1713623440248,-151.0,0.00023995,2]
[323066926,1713623440258,-346.559561,0.00023995,2]
[323066927,1713623440266,-151.0,0.00023995,2]
[323066929,1713623440275,-151.154752,0.00023995,2]
[323066931,1713623440284,-346.559561,0.00023995,2]
[323066933,1713623440293,-151.0,0.00023995,2]
[323066935,1713623440302,-346.559561,0.00023995,2]
[323066937,1713623440311,-151.0,0.00023995,2]
[323066939,1713623440320,-189.243093,0.00023995,2]
[323066941,1713623440330,-189.243093,0.00023995,2]
[323066943,1713623440339,-189.243093,0.00023995,2]
[323066945,1713623440349,-189.243093,0.00023995,2]
[323066948,1713623440358,-189.243093,0.00023995,2]
[323066949,1713623440367,-189.243093,0.00023995,2]
[323066951,1713623440376,-189.243093,0.00023995,2]
[323066953,1713623440386,-189.243093,0.00023995,2]
[323066955,1713623440395,-151.0,0.00023995,2]
[323066957,1713623440404,-151.0,0.00023995,2]
[323066959,1713623440413,-151.0,0.00023995,2]
[323066961,1713623440423,-151.0,0.00023995,2]
[323066963,1713623440432,-151.0,0.00023995,2]
[323066965,1713623440442,-151.0,0.00023995,2]
[323066968,1713623440451,-151.0,0.00023995,2]
[323066970,1713623440460,-153.217527,0.00023995,2]
[323066971,1713623440469,-173.297252,0.00023995,2]
[323066974,1713623440479,-173.297252,0.00023995,2]
[323066975,1713623440488,-173.297252,0.00023995,2]
[323066977,1713623440498,-173.297252,0.00023995,2]
[323066980,1713623440507,-173.297252,0.00023995,2]
[323066981,1713623440516,-173.297252,0.00023995,2]
[323066983,1713623440526,-173.297252,0.00023995,2]
[323066985,1713623440535,-173.297252,0.00023995,2]
[323066988,1713623440544,-173.297252,0.00023995,2]
[323066989,1713623440553,-173.297252,0.00023995,2]
[323066992,1713623440562,-155.925258,0.00023995,2]
[323066993,1713623440572,-151.0,0.00023995,2]
[323066996,1713623440581,-151.0,0.00023995,2]
[323066998,1713623440590,-151.0,0.00023995,2]
[323067000,1713623440599,-151.0,0.00023995,2]
[323067002,1713623440611,-151.0,0.00023995,2]
[323067004,1713623440620,-151.0,0.00023995,2]
[323067006,1713623440629,-151.0,0.00023995,2]
[323067008,1713623440638,-151.0,0.00023995,2]
[323067010,1713623440647,-164.690686,0.00023995,2]
[323067012,1713623440657,-223.685533,0.00023995,2]
[323067014,1713623440666,-961.440346,0.00023995,2]
[323067016,1713623440674,-961.440346,0.00023995,2]
[323067018,1713623440684,-961.440346,0.00023995,2]
[323067020,1713623440693,-961.440346,0.00023995,2]
[323067022,1713623440702,-961.440346,0.00023995,2]
[323067024,1713623440711,-961.440346,0.00023995,2]
[323067026,1713623440720,-961.440346,0.00023995,2]
[323067028,1713623440729,-961.440346,0.00023995,2]
[323067030,1713623440738,-151.0,0.00023995,2]
[323067032,1713623440747,-151.0,0.00023995,2]
[323067034,1713623440756,-961.440346,0.00023995,2]
[323067036,1713623440765,-961.440346,0.00023995,2]
[323067038,1713623440775,-151.0,0.00023995,2]
[323067040,1713623440784,-151.0,0.00023995,2]
[323067042,1713623440793,-151.0,0.00023995,2]
[323067044,1713623440803,-151.0,0.00023995,2]
[323067046,1713623440812,-295.05323,0.00023995,2]
[323067048,1713623440822,-151.0,0.00023995,2]
[323067050,1713623440832,-151.0,0.00023995,2]
[323067052,1713623440841,-172.882386,0.00023995,2]
[323067054,1713623440850,-882.92224013,0.00023996,2]
[323067056,1713623440859,-151.0,0.00023996,2]
[323067058,1713623440869,-196.915655,0.00023996,2]
[323067060,1713623440878,-196.915655,0.00023996,2]
[323067062,1713623440887,-156.615721,0.00023996,2]
[323067064,1713623440897,-156.615721,0.00023996,2]
[323067066,1713623440906,-596.788897,0.00023996,2]
[323067068,1713623440916,-385.066179,0.00023996,2]
[323067070,1713623440925,-596.788897,0.00023996,2]
[323067072,1713623440937,-325.786435,0.00023996,2]
[323067074,1713623440950,-325.786435,0.00023996,2]
[323067076,1713623440959,-1298.189436,0.00023996,2]
[323067078,1713623440967,-1298.189436,0.00023996,2]
[323067080,1713623440977,-270.001275,0.00023996,2]
[323067082,1713623440986,-270.001275,0.00023996,2]
[323067084,1713623440998,-270.001275,0.00023996,2]
[323067086,1713623441007,-270.001275,0.00023996,2]
[323067088,1713623441017,-151.0,0.00023996,2]
[323067090,1713623441026,-151.0,0.00023996,2]
[323067092,1713623441036,-151.0,0.00023996,2]
[323067094,1713623441045,-151.0,0.00023996,2]
[323067096,1713623441054,-345.601958,0.00023996,2]
[323067098,1713623441063,-345.601958,0.00023996,2]
[323067100,1713623441074,-345.601958,0.00023996,2]
[323067102,1713623441083,-345.601958,0.00023996,2]
[323067104,1713623441092,-173.749748,0.00023996,2]
[323067106,1713623441101,-173.749748,0.00023996,2]
[323067108,1713623441110,-173.749748,0.00023996,2]
[323067110,1713623441119,-173.749748,0.00023996,2]
[323067112,1713623441128,-151.0,0.00023996,2]
[323067114,1713623441137,-151.0,0.00023996,2]
[323067116,1713623441146,-151.0,0.00023996,2]
[323067118,1713623441154,-151.0,0.00023996,2]
[323067120,1713623441164,-2109.5366,0.00023996,2]
[323067122,1713623441172,-2109.5366,0.00023996,2]
[323067124,1713623441182,-2109.5366,0.00023996,2]
[323067126,1713623441193,-2109.5366,0.00023996,2]
[323067128,1713623441202,-151.0,0.00023996,2]
[323067130,1713623441211,-213.969832,0.00023996,2]
[323067132,1713623441220,-205.180132,0.00023996,2]
[323067134,1713623441229,-151.0,0.00023996,2]
[323067136,1713623441238,-247.187663,0.00023996,2]
[323067138,1713623441248,-346.559561,0.00023996,2]
[323067140,1713623441257,-346.559561,0.00023996,2]
[323067142,1713623441266,-346.559561,0.00023996,2]
[323067144,1713623441275,-151.0,0.00023996,2]
[323067146,1713623441284,-151.0,0.00023996,2]
[323067148,1713623441293,-346.559561,0.00023996,2]
[323067150,1713623441302,-153.472085,0.00023996,2]
[323067152,1713623441311,-189.243093,0.00023996,2]
[323067154,1713623441320,-189.243093,0.00023996,2]
[323067156,1713623441329,-189.243093,0.00023996,2]
[323067158,1713623441338,-189.243093,0.00023996,2]
[323067160,1713623441347,-151.0,0.00023996,2]
[323067162,1713623441356,-151.0,0.00023996,2]
[323067164,1713623441365,-173.297252,0.00023996,2]
[323067166,1713623441374,-173.297252,0.00023996,2]
[323067168,1713623441383,-173.297252,0.00023996,2]
[323067170,1713623441392,-173.297252,0.00023996,2]
[323067172,1713623441401,-151.0,0.00023996,2]
[323067174,1713623441409,-151.0,0.00023996,2]
[323067175,1713623441418,-961.440346,0.00023996,2]
[323067178,1713623441427,-961.440346,0.00023996,2]
[323067180,1713623441438,-961.440346,0.00023996,2]
[323067182,1713623441447,-151.0,0.00023996,2]
[323067184,1713623441456,-961.440346,0.00023996,2]
[323067186,1713623441465,-151.0,0.00023996,2]
[323067188,1713623441474,-31268.344993,0.00023997,2]
[323067189,1713623441484,-151.0,0.00023997,2]
[323067191,1713623441493,-156.012182,0.00023997,2]
[323067193,1713623441502,-151.0,0.00023997,2]
[323067195,1713623441511,-151.0,0.00023997,2]
[323067206,1713623441596,-151.0,0.00023997,2]
[323067208,1713623441608,-151.0,0.00023997,2]
[323067210,1713623441617,-253.117757,0.00023997,2]
[323067212,1713623441626,-151.0,0.00023997,2]
[323067214,1713623441635,-196.915655,0.00023997,2]
[323067216,1713623441644,-196.915655,0.00023997,2]
[323067218,1713623441653,-151.0,0.00023997,2]
[323067220,1713623441662,-156.615721,0.00023997,2]
[323067222,1713623441672,-156.615721,0.00023997,2]
[323067225,1713623441681,-596.788897,0.00023997,2]
[323067226,1713623441692,-596.788897,0.00023997,2]
[323067228,1713623441700,-325.786435,0.00023997,2]
[323067230,1713623441709,-325.786435,0.00023997,2]
[323067232,1713623441718,-1298.189436,0.00023997,2]
[323067234,1713623441728,-1298.189436,0.00023997,2]
[323067236,1713623441738,-1298.189436,0.00023997,2]
[323067238,1713623441747,-1298.189436,0.00023997,2]
[323067240,1713623441756,-270.001275,0.00023997,2]
[323067243,1713623441766,-270.001275,0.00023997,2]
[323067245,1713623441775,-270.001275,0.00023997,2]
[323067246,1713623441785,-270.001275,0.00023997,2]
[323067248,1713623441794,-151.0,0.00023997,2]
[323067250,1713623441803,-151.0,0.00023997,2]
[323067252,1713623441812,-151.0,0.00023997,2]
[323067254,1713623441821,-151.0,0.00023997,2]
[323067256,1713623441830,-345.601958,0.00023997,2]
[323067258,1713623441839,-345.601958,0.00023997,2]
[323067260,1713623441848,-345.601958,0.00023997,2]
[323067262,1713623441857,-345.601958,0.00023997,2]
[323067264,1713623441866,-173.749748,0.00023997,2]
[323067266,1713623441875,-173.749748,0.00023997,2]
[323067268,1713623441884,-173.749748,0.00023997,2]
[323067270,1713623441893,-173.749748,0.00023997,2]
[323067272,1713623441902,-168.221506,0.00023997,2]
[323067274,1713623441911,-151.0,0.00023997,2]
[323067276,1713623441920,-151.0,0.00023997,2]
[323067278,1713623441930,-151.0,0.00023997,2]
[323067280,1713623441940,-2109.5366,0.00023997,2]
[323067282,1713623441949,-2109.5366,0.00023997,2]
[323067284,1713623441958,-2109.5366,0.00023997,2]
[323067286,1713623441967,-2109.5366,0.00023997,2]
[323067288,1713623441976,-346.559561,0.00023997,2]
[323067290,1713623441986,-346.559561,0.00023997,2]
[323067293,1713623441999,-346.559561,0.00023997,2]
[323067294,1713623442009,-346.559561,0.00023997,2]
[323067296,1713623442019,-346.559561,0.00023997,2]
[323067298,1713623442029,-346.559558,0.00023997,2]
[323067301,1713623442041,-189.243093,0.00023997,2]
[323067303,1713623442050,-189.243093,0.00023997,2]
[323067305,1713623442059,-189.243093,0.00023997,2]
[323067306,1713623442068,-189.243093,0.00023997,2]
[323067308,1713623442078,-189.243093,0.00023997,2]
[323067310,1713623442088,-189.243093,0.00023997,2]
[323067312,1713623442097,-151.0,0.00023997,2]
[323067314,1713623442106,-151.0,0.00023997,2]
[323067316,1713623442115,-151.0,0.00023997,2]
[323067318,1713623442124,-173.297252,0.00023997,2]
[323067320,1713623442133,-173.297252,0.00023997,2]
[323067322,1713623442142,-173.297252,0.00023997,2]
[323067324,1713623442152,-173.297252,0.00023997,2]
[323067326,1713623442161,-173.297252,0.00023997,2]
[323067328,1713623442170,-173.29726,0.00023997,2]
[323067330,1713623442179,-151.0,0.00023997,2]
[323067332,1713623442189,-151.0,0.00023997,2]
[323067334,1713623442198,-151.0,0.00023997,2]
[323067336,1713623442208,-961.440346,0.00023997,2]
[323067338,1713623442216,-961.440346,0.00023997,2]
[323067340,1713623442226,-961.440346,0.00023997,2]
[323067342,1713623442235,-961.440346,0.00023997,2]
[323067344,1713623442245,-961.440346,0.00023997,2]
[323067346,1713623442254,-151.0,0.00023997,2]
[323067348,1713623442263,-961.440356,0.00023997,2]
[323067350,1713623442272,-151.0,0.00023997,2]
[323067352,1713623442281,-151.0,0.00023997,2]
[323067354,1713623442290,-228.36569,0.00023998,2]
[323067356,1713623442299,-151.0,0.00023998,2]
[323067358,1713623442308,-151.0,0.00023998,2]
[323067360,1713623442317,-151.0,0.00023998,2]
[323067362,1713623442326,-151.0,0.00023998,2]
[323067364,1713623442335,-280.751665,0.00023998,2]
[323067367,1713623442344,-151.0,0.00023998,2]
[323067369,1713623442353,-152.946053,0.00023998,2]
[323067371,1713623442362,-151.0,0.00023998,2]
[323067373,1713623442372,-291.085375,0.00023998,2]
[323067375,1713623442381,-253.117757,0.00023998,2]
[323067377,1713623442390,-253.117757,0.00023998,2]
[323067380,1713623442399,-253.117757,0.00023998,2]
[323067383,1713623442408,-253.117757,0.00023998,2]
[323067386,1713623442417,-151.0,0.00023998,2]
[323067389,1713623442426,-151.0,0.00023998,2]
[323067392,1713623442436,-151.0,0.00023998,2]
[323067395,1713623442445,-151.0,0.00023998,2]
[323067399,1713623442454,-196.915655,0.00023998,2]
[323067402,1713623442463,-196.915655,0.00023998,2]
[323067406,1713623442472,-196.915655,0.00023998,2]
[323067410,1713623442481,-196.915655,0.00023998,2]
[323067414,1713623442490,-196.915655,0.00023998,2]
[323067418,1713623442499,-196.915655,0.00023998,2]
[323067422,1713623442509,-196.915655,0.00023998,2]
[323067425,1713623442518,-196.915655,0.00023998,2]
[323067428,1713623442527,-196.915655,0.00023998,2]
[323067431,1713623442536,-196.915655,0.00023998,2]
[323067432,1713623442545,-151.0,0.00023998,2]
[323067434,1713623442554,-151.0,0.00023998,2]
[323067436,1713623442563,-151.0,0.00023998,2]
[323067438,1713623442572,-151.0,0.00023998,2]
[323067440,1713623442581,-156.615721,0.00023998,2]
[323067442,1713623442590,-156.615721,0.00023998,2]
[323067444,1713623442599,-156.615721,0.00023998,2]
[323067446,1713623442607,-156.615721,0.00023998,2]
[323067449,1713623442616,-156.615721,0.00023998,2]
[323067451,1713623442625,-156.615721,0.00023998,2]
[323067453,1713623442634,-596.788897,0.00023998,2]
[323067455,1713623442642,-596.788897,0.00023998,2]
[323067457,1713623442651,-596.788897,0.00023998,2]
[323067459,1713623442660,-385.066179,0.00023998,2]